bitfinex/quotes_BTCUSD_20240929
["timestamp","ask_amount","ask_price","bid_price","bid_amount"]
[1727581354410,0.28609642,65952.0,65951.0,0.45005978]
[1727581354411,0.02459645,65952.0,65951.0,0.45005978]
[1727581354642,0.04637604,65952.0,65951.0,0.45005978]
[1727581354886,0.000827,65952.0,65951.0,0.45005978]
[1727581355799,0.000827,65952.0,65951.0,0.45305978]
[1727581356007,0.000827,65952.0,65951.0,0.45005978]
[1727581356214,0.000827,65952.0,65951.0,0.45705978]
[1727581356472,0.000827,65952.0,65951.0,0.45005978]
[1727581356695,0.000827,65952.0,65951.0,0.45105978]
[1727581356921,0.000827,65952.0,65951.0,0.46105978]
[1727581357144,0.000827,65952.0,65951.0,0.46005978]
[1727581357589,0.000827,65952.0,65951.0,0.47105978]
[1727581360070,0.000827,65952.0,65951.0,0.59046807]
[1727581363470,0.000827,65952.0,65951.0,0.47105978]
[1727581369842,0.000827,65952.0,65951.0,0.46005978]
[1727581370493,0.000827,65952.0,65951.0,0.47105978]
[1727581371048,0.000827,65952.0,65951.0,0.46105978]
[1727581371648,0.000827,65952.0,65951.0,0.47105978]
[1727581372100,0.000827,65952.0,65951.0,0.46005978]
[1727581372333,0.000827,65952.0,65951.0,0.46105978]
[1727581372498,0.000827,65952.0,65951.0,0.47105978]
[1727581378947,0.000827,65952.0,65951.0,0.46005978]
[1727581379437,0.000827,65952.0,65951.0,0.47976555]
[1727581380702,0.000827,65952.0,65951.0,0.49276555]
[1727581385180,0.000827,65952.0,65951.0,0.46576555]
[1727581385655,0.000827,65952.0,65951.0,0.47976555]
[1727581385889,0.000827,65952.0,65951.0,0.61374442]
[1727581386356,0.000827,65952.0,65951.0,0.59803865]
[1727581389339,0.000827,65952.0,65951.0,0.61375477]
[1727581390044,0.000827,65952.0,65951.0,0.4927759]
[1727581390699,0.000827,65952.0,65951.0,0.47705978]
[1727581391146,0.000827,65952.0,65951.0,0.46305978]
[1727581391378,0.000827,65952.0,65951.0,0.45005978]
[1727581391625,0.001654,65956.0,65955.0,0.151618]
[1727581391838,0.001654,65956.0,65955.0,0.26980898]
[1727581392087,0.001654,65956.0,65955.0,0.54221728]
[1727581392327,0.001654,65956.0,65955.0,0.59755983]
[1727581394398,0.001654,65956.0,65955.0,0.60855983]
[1727581394868,0.001654,65956.0,65955.0,0.60855982]
[1727581395339,0.001654,65956.0,65955.0,0.61855982]
[1727581403657,0.001654,65956.0,65955.0,0.51745152]
[1727581404421,0.001654,65956.0,65955.0,0.53321767]
[1727581404899,0.001654,65956.0,65955.0,0.51745152]
[1727581405289,0.001654,65956.0,65955.0,0.32728256]
[1727581405494,0.001654,65956.0,65955.0,0.44211767]
[1727581409440,0.001654,65956.0,65955.0,0.45071767]
[1727581411233,0.001654,65956.0,65955.0,0.43495152]
[1727581412815,0.001654,65956.0,65955.0,0.23991641]
[1727581413021,0.096854,65956.0,65955.0,0.20313352]
[1727581413219,0.096854,65956.0,65955.0,0.35475152]
[1727581413636,0.096854,65956.0,65955.0,0.20313352]
[1727581414653,0.096854,65956.0,65955.0,0.35475152]
[1727581415512,0.001654,65956.0,65955.0,0.35475152]
[1727581420873,0.001654,65956.0,65955.0,0.45727047]
[1727581423071,0.001654,65956.0,65955.0,0.45727046]
[1727581424454,0.001656,65958.0,65956.0,0.15856]
[1727581424643,0.001656,65958.0,65956.0,0.15888379]
[1727581425073,0.001656,65958.0,65957.0,0.05831007]
[1727581425336,0.001656,65958.0,65957.0,0.1100577]
[1727581425565,0.001656,65958.0,65957.0,0.2616707]
[1727581426206,0.001656,65958.0,65957.0,0.21024686]
[1727581426631,0.001656,65958.0,65957.0,0.21824686]
[1727581426842,0.001656,65958.0,65957.0,0.22724686]
[1727581439229,0.04554189,65961.0,65959.0,0.00529]
[1727581439459,0.04554189,65961.0,65960.0,0.11483511]
[1727581439683,0.04554189,65961.0,65960.0,0.17343197]
[1727581440548,0.04554189,65961.0,65960.0,0.17843197]
[1727581441017,0.04554256,65961.0,65960.0,0.17843197]
[1727581441856,0.06831384,65962.0,65960.0,0.17843197]
[1727581442489,0.06831384,65962.0,65960.0,0.18443197]
[1727581442898,0.06831384,65962.0,65960.0,0.17343197]
[1727581443401,0.06831384,65962.0,65960.0,0.18243197]
[1727581444273,0.0455447,65961.0,65960.0,0.18243197]
[1727581444491,0.04554468,65961.0,65960.0,0.18243197]
[1727581444950,0.04554468,65961.0,65960.0,0.33403897]
[1727581445170,0.04554468,65961.0,65960.0,0.17743197]
[1727581445621,0.04554468,65961.0,65960.0,0.18343197]
[1727581445841,0.0455444,65961.0,65960.0,0.18343197]
[1727581446104,0.0683166,65962.0,65960.0,0.17943197]
[1727581446326,0.0683166,65962.0,65960.0,0.18443197]
[1727581447011,0.0683166,65962.0,65960.0,0.33603797]
[1727581447218,0.0683166,65962.0,65960.0,0.33103797]
[1727581447425,0.0683166,65962.0,65960.0,0.18343197]
[1727581447847,0.0683166,65961.0,65960.0,0.17743197]
[1727581448282,0.0683166,65961.0,65960.0,0.18243197]
[1727581448927,0.0683166,65961.0,65960.0,0.17743197]
[1727581449151,0.0683166,65961.0,65960.0,0.17943197]
[1727581449370,0.0683166,65961.0,65960.0,0.18443197]
[1727581450227,0.0691436,65961.0,65960.0,0.18443197]
[1727581451151,0.0691436,65961.0,65960.0,0.33603897]
[1727581451365,0.06915027,65961.0,65960.0,0.33603897]
[1727581451580,0.000827,65961.0,65960.0,0.33603897]
[1727581451792,0.06915006,65961.0,65960.0,0.33603897]
[1727581452678,0.000827,65961.0,65960.0,0.33603897]
[1727581453094,0.06915135,65961.0,65960.0,0.33603897]
[1727581453514,0.06915135,65961.0,65960.0,0.18443197]
[1727581454852,0.06915135,65961.0,65960.0,0.18443196]
[1727581455499,0.000827,65961.0,65960.0,0.18443196]
[1727581455909,0.06915445,65961.0,65960.0,0.18443196]
[1727581456392,0.06386445,65961.0,65960.0,0.18443196]
[1727581456806,0.09110257,65962.0,65960.0,0.18443196]
[1727581457667,0.09110257,65962.0,65960.0,0.17843196]
[1727581458335,0.09110257,65962.0,65960.0,0.17343196]
[1727581459640,0.23921731,65962.0,65960.0,0.18243196]
[1727581459868,0.09110257,65962.0,65960.0,0.18243196]
[1727581460511,0.09110745,65962.0,65960.0,0.18243196]
[1727581460746,0.09110745,65962.0,65960.0,0.17743196]
[1727581460953,0.23919457,65962.0,65960.0,0.17343196]
[1727581461197,0.23919457,65962.0,65960.0,0.17843196]
[1727581462591,0.23919457,65962.0,65960.0,0.17543196]
[1727581462815,0.23919457,65961.0,65960.0,0.17743196]
[1727581463038,0.14808712,65961.0,65960.0,0.18043196]
[1727581463269,0.23919457,65962.0,65960.0,0.18043196]
[1727581463531,0.14808712,65961.0,65960.0,0.18043196]
[1727581463791,0.09110745,65961.0,65960.0,0.18043196]
[1727581464011,0.23919457,65961.0,65960.0,0.17343196]
[1727581464254,0.23919457,65961.0,65960.0,0.17743196]
[1727581464489,0.23919457,65961.0,65960.0,0.17943196]
[1727581464727,0.23919457,65961.0,65960.0,0.17343196]
[1727581465595,0.23908328,65961.0,65960.0,0.17343196]
[1727581465834,0.39068728,65961.0,65960.0,0.17343196]
[1727581466064,0.39068728,65961.0,65960.0,0.17643196]
[1727581468666,0.39068728,65961.0,65960.0,0.11815889]
[1727581468943,0.39068728,65961.0,65960.0,0.17642969]
[1727581470370,0.39064118,65961.0,65960.0,0.17642969]
[1727581471568,0.29954008,65961.0,65960.0,0.17642969]
[1727581472500,0.39064118,65961.0,65960.0,0.17642969]
[1727581472729,0.29954008,65961.0,65960.0,0.17642969]
[1727581473181,0.39064118,65961.0,65960.0,0.17642969]
[1727581473420,0.14793608,65961.0,65960.0,0.11815889]
[1727581473635,0.39064118,65961.0,65960.0,0.17642969]
[1727581473853,0.39064118,65961.0,65960.0,0.11815889]
[1727581474110,0.39064118,65961.0,65960.0,0.17642969]
[1727581474772,0.29954008,65961.0,65960.0,0.11815889]
[1727581475002,0.29954008,65961.0,65960.0,0.17642969]
[1727581476395,0.29954008,65961.0,65960.0,0.17808369]
[1727581476666,0.151604,65961.0,65960.0,0.11981289]
[1727581476896,0.152431,65961.0,65960.0,0.17808369]
[1727581477118,0.30043243,65961.0,65960.0,0.17808369]
[1727581478266,0.23992953,65961.0,65960.0,0.17808369]
[1727581478501,0.14882843,65961.0,65960.0,0.21138466]
[1727581478736,0.3004208,65961.0,65960.0,0.17808369]
[1727581479198,0.3915219,65961.0,65960.0,0.17808369]
[1727581479430,0.152431,65961.0,65960.0,0.17808369]
[1727581479652,0.30037167,65961.0,65960.0,0.17808369]
[1727581479887,0.23986877,65961.0,65960.0,0.17808369]
[1727581480104,0.30030467,65961.0,65960.0,0.17808369]
[1727581480333,0.39141669,65961.0,65960.0,0.17808369]
[1727581480564,0.30030467,65961.0,65960.0,0.17808369]
[1727581480795,0.39141669,65961.0,65960.0,0.17808369]
[1727581481030,0.152431,65961.0,65960.0,0.17808369]
[1727581481231,0.152431,65961.0,65960.0,0.11981289]
[1727581481446,0.152431,65961.0,65960.0,0.17808419]
[1727581481670,0.14875815,65961.0,65960.0,0.17708419]
[1727581481922,0.000827,65961.0,65960.0,0.17708419]
[1727581482150,0.152431,65961.0,65960.0,0.17508419]
[1727581482365,0.000827,65961.0,65960.0,0.17708419]
[1727581482580,0.152431,65961.0,65960.0,0.17708419]
[1727581482800,0.23990781,65961.0,65960.0,0.17508419]
[1727581483033,0.23990781,65961.0,65960.0,0.17808419]
[1727581483249,0.14879579,65961.0,65960.0,0.18008419]
[1727581483467,0.14879573,65961.0,65960.0,0.18008419]
[1727581484161,0.14877335,65961.0,65960.0,0.18008419]
[1727581484839,0.14878374,65961.0,65960.0,0.18008419]
[1727581485088,0.23977463,65961.0,65960.0,0.18008419]
[1727581487500,0.1486582,65961.0,65960.0,0.18008419]
[1727581487933,0.23977463,65961.0,65960.0,0.17808419]
[1727581488145,0.23977463,65961.0,65960.0,0.17508419]
[1727581488363,0.23977463,65961.0,65960.0,0.18008419]
[1727581488809,0.23977463,65961.0,65960.0,0.17708419]
[1727581489260,0.23977463,65961.0,65960.0,0.18108419]
[1727581489518,0.23977463,65961.0,65960.0,0.17908419]
[1727581489739,0.23977463,65961.0,65960.0,0.18208419]
[1727581489980,0.23992137,65961.0,65960.0,0.18208419]
[1727581491129,0.39152537,65961.0,65960.0,0.06724908]
[1727581491375,0.49112537,65961.0,65960.0,0.06724908]
[1727581491566,0.49112537,65961.0,65960.0,0.00897778]
[1727581491567,0.40000363,65961.0,65960.0,0.00897778]
[1727581492063,0.51390581,65961.0,65960.0,0.00897778]
[1727581492507,0.40000363,65961.0,65960.0,0.00897778]
[1727581495508,0.39989421,65961.0,65960.0,0.00897778]
[1727581496579,0.39989421,65961.0,65960.0,0.00597778]
[1727581497029,0.39989421,65961.0,65960.0,0.00697778]
[1727581497674,0.39989421,65961.0,65960.0,0.00197778]
[1727581498105,0.39989421,65961.0,65960.0,0.00397778]
[1727581498550,0.39989421,65961.0,65960.0,0.00197778]
[1727581499861,0.39986483,65961.0,65960.0,0.00197778]
[1727581503871,0.39986483,65961.0,65960.0,0.06025382]
[1727581504096,0.40086483,65961.0,65960.0,0.00197778]
[1727581504319,0.30126483,65961.0,65960.0,0.06025382]
[1727581504541,0.30026483,65961.0,65960.0,0.00197778]
[1727581504768,0.30026483,65961.0,65960.0,0.00297778]
[1727581505021,0.14866083,65961.0,65960.0,0.00297778]
[1727581505243,0.30026483,65961.0,65960.0,0.00297778]
[1727581505479,0.30026483,65961.0,65960.0,0.06326823]
[1727581505706,0.14866083,65961.0,65960.0,0.00497778]
[1727581505932,0.30026483,65961.0,65960.0,0.06326823]
[1727581506185,0.30026483,65961.0,65960.0,0.00497777]
[1727581506186,0.14866083,65961.0,65960.0,0.00497777]
[1727581506402,0.30026483,65961.0,65960.0,0.06326822]
[1727581506624,0.30026483,65961.0,65960.0,0.08567777]
[1727581506848,0.30026483,65961.0,65960.0,0.14396822]
[1727581506849,0.14866083,65961.0,65960.0,0.14396822]
[1727581507562,0.39137919,65961.0,65960.0,0.14396822]
[1727581508012,0.30026483,65961.0,65960.0,0.14396822]
[1727581509554,0.14866083,65961.0,65960.0,0.14396822]
[1727581509769,0.30026483,65961.0,65960.0,0.14396822]
[1727581510394,0.39138035,65961.0,65960.0,0.14396822]
[1727581510821,0.30026483,65961.0,65960.0,0.14396822]
[1727581511693,0.30026483,65961.0,65960.0,0.14196822]
[1727581512138,0.30026483,65961.0,65960.0,0.14596822]
[1727581512418,0.30026483,65961.0,65960.0,0.14496822]
[1727581512626,0.39138059,65961.0,65960.0,0.14496822]
[1727581512837,0.30026483,65961.0,65960.0,0.14796822]
[1727581513069,0.30024399,65961.0,65960.0,0.14796822]
[1727581515074,0.30024399,65961.0,65960.0,0.26280333]
[1727581515805,0.30024399,65961.0,65960.0,0.25580333]
[1727581516035,0.30024399,65961.0,65960.0,0.25680333]
[1727581516495,0.30024399,65961.0,65960.0,0.25580333]
[1727581516712,0.30024399,65961.0,65960.0,0.25680333]
[1727581517891,0.30027722,65961.0,65960.0,0.25680333]
[1727581518332,0.14867322,65961.0,65960.0,0.25680333]
[1727581518551,0.30027722,65961.0,65960.0,0.25680333]
[1727581519212,0.14867322,65961.0,65960.0,0.30795606]
[1727581519431,0.09193833,65961.0,65960.0,0.30795606]
[1727581519674,0.09193833,65961.0,65960.0,0.45956306]
[1727581519891,0.23978455,65961.0,65960.0,0.30795606]
[1727581520081,0.23978455,65961.0,65960.0,0.25680333]
[1727581520333,0.14867322,65961.0,65960.0,0.25680333]
[1727581521197,0.0919386,65961.0,65960.0,0.25680333]
[1727581521417,0.14867322,65961.0,65960.0,0.25680333]
[1727581521632,0.23978505,65961.0,65960.0,0.25680333]
[1727581522734,0.14867322,65961.0,65960.0,0.25680333]
[1727581523854,0.23978566,65961.0,65960.0,0.25680333]
[1727581524510,0.14867322,65961.0,65960.0,0.25680333]
[1727581526066,0.23979016,65961.0,65960.0,0.25680333]
[1727581527393,0.39139416,65961.0,65960.0,0.25680333]
[1727581527612,0.30027722,65961.0,65960.0,0.25680333]
[1727581528718,0.39139445,65961.0,65960.0,0.25680333]
[1727581530298,0.30027722,65961.0,65960.0,0.25680333]
[1727581530757,0.39139466,65961.0,65960.0,0.25680333]
[1727581531428,0.23979066,65961.0,65960.0,0.25680333]
[1727581531660,0.39139466,65961.0,65960.0,0.25680333]
[1727581532311,0.30027722,65961.0,65960.0,0.25680333]
[1727581532503,0.39139561,65961.0,65960.0,0.25680333]
[1727581533031,0.30027722,65961.0,65960.0,0.25680333]
[1727581535007,0.30027722,65961.0,65960.0,0.19851288]
[1727581535477,0.30027722,65961.0,65960.0,0.25677028]
[1727581536824,0.41416631,65961.0,65960.0,0.25677028]
[1727581537633,0.30027722,65961.0,65960.0,0.25677028]
[1727581539452,0.14867322,65961.0,65960.0,0.25677028]
[1727581539678,0.30027722,65961.0,65960.0,0.25677028]
[1727581540148,0.39139858,65961.0,65960.0,0.25677028]
[1727581540362,0.30027722,65961.0,65960.0,0.25677028]
[1727581541002,0.39139945,65961.0,65960.0,0.25677028]
[1727581541667,0.39139945,65961.0,65960.0,0.25577028]
[1727581541890,0.30027722,65961.0,65960.0,0.25577028]
[1727581542112,0.30027722,65961.0,65960.0,0.26177028]
[1727581542320,0.30228304,65961.0,65960.0,0.26177028]
[1727581542555,0.30228304,65961.0,65960.0,0.26077028]
[1727581542759,0.39340362,65961.0,65960.0,0.26277028]
[1727581543025,0.30228304,65961.0,65960.0,0.26277028]
[1727581543242,0.39340327,65961.0,65960.0,0.26877028]
[1727581544140,0.3934032,65961.0,65960.0,0.26877028]
[1727581544395,0.30228304,65961.0,65960.0,0.26877028]
[1727581549348,0.39340422,65961.0,65960.0,0.26877028]
[1727581549586,0.30228304,65961.0,65960.0,0.26877028]
[1727581552110,0.15067904,65961.0,65960.0,0.26877028]
[1727581552789,0.09194837,65961.0,65960.0,0.26877028]
[1727581553009,0.24180041,65961.0,65960.0,0.26877028]
[1727581554172,0.39340441,65961.0,65960.0,0.26877028]
[1727581555731,0.39335897,65961.0,65960.0,0.26877028]
[1727581558550,0.30223893,65961.0,65960.0,0.26877028]
[1727581560534,0.15063493,65961.0,65960.0,0.26877028]
[1727581560755,0.39337383,65961.0,65960.0,0.26877028]
[1727581561176,0.39341708,65961.0,65960.0,0.26877028]
[1727581561440,0.39340745,65961.0,65960.0,0.26877028]
[1727581562587,0.24180345,65961.0,65960.0,0.26877028]
[1727581562812,0.39340745,65961.0,65960.0,0.26877028]
[1727581563535,0.24180345,65961.0,65960.0,0.26877028]
[1727581567786,0.24180345,65961.0,65960.0,0.26877027]
[1727581568015,0.1506694,65961.0,65960.0,0.26877027]
[1727581568478,0.24180186,65961.0,65960.0,0.26877027]
[1727581568692,0.39340586,65961.0,65960.0,0.26877027]
[1727581570296,0.39340516,65961.0,65960.0,0.26877027]
[1727581571219,0.24180116,65961.0,65960.0,0.26877027]
[1727581571648,0.39340516,65961.0,65960.0,0.26877027]
[1727581572530,0.24180116,65961.0,65960.0,0.26877027]
[1727581573209,0.39340516,65961.0,65960.0,0.26877027]
[1727581574975,0.39340516,65961.0,65960.0,0.18807027]
[1727581580713,0.30227261,65961.0,65960.0,0.18807027]
[1727581584877,0.30227261,65961.0,65960.0,0.07323516]
[1727581585346,0.30227261,65961.0,65960.0,0.01497776]
[1727581587564,0.39577261,65961.0,65960.0,0.01497776]
[1727581589446,0.75475108,65961.0,65960.0,0.01497776]
[1727581589683,0.70035822,65961.0,65960.0,0.01497776]
[1727581591299,0.70035822,65961.0,65960.0,0.00197776]
[1727581591521,0.70135822,65961.0,65960.0,0.00297776]
[1727581591744,0.70135822,65961.0,65960.0,0.00197776]
[1727581591968,0.7241271,65961.0,65960.0,0.00197776]
[1727581592201,0.7241271,65961.0,65960.0,0.00297776]
[1727581592470,0.7251271,65961.0,65960.0,0.00397776]
[1727581593571,0.73353107,65961.0,65960.0,0.00397776]
[1727581594266,0.73368132,65961.0,65960.0,0.00397776]
[1727581596247,0.84635384,65961.0,65960.0,0.00397776]
[1727581596754,0.7240742,65961.0,65960.0,0.00397776]
[1727581597848,0.74784299,65961.0,65960.0,0.00397776]
[1727581598549,0.61140159,65961.0,65960.0,0.00397776]
[1727581599002,0.46220376,65961.0,65960.0,0.00397776]
[1727581599245,0.6113112,65961.0,65960.0,0.00397776]
[1727581599464,0.6668163,65961.0,65960.0,0.00397776]
[1727581599917,0.6113112,65961.0,65960.0,0.00397776]
[1727581601256,0.5282112,65961.0,65960.0,0.00397776]
[1727581608774,0.37910376,65961.0,65960.0,0.00397776]
[1727581608986,0.52818231,65961.0,65960.0,0.00397776]
[1727581610989,0.51977834,65961.0,65960.0,0.00397776]
[1727581611213,0.42627834,65961.0,65960.0,0.00397776]
[1727581612504,0.42627834,65961.0,65960.0,0.00297776]
[1727581613793,0.42527834,65961.0,65960.0,0.00197776]
[1727581614005,0.42927834,65961.0,65960.0,0.00297776]
[1727581615129,0.42527834,65961.0,65960.0,0.00197776]
[1727581615992,0.42521972,65961.0,65960.0,0.00197776]
[1727581616430,0.42921972,65961.0,65960.0,0.00197776]
[1727581620028,0.40545093,65961.0,65960.0,0.00197776]
[1727581623296,0.42921942,65961.0,65960.0,0.00197776]
[1727581624359,0.40545093,65961.0,65960.0,0.00197776]
[1727581626538,0.54179601,65961.0,65960.0,0.00197776]
[1727581626969,0.256431,65961.0,65960.0,0.00197776]
[1727581627198,0.39288893,65961.0,65960.0,0.00197776]
[1727581627363,0.54216215,65961.0,65960.0,0.00197776]
[1727581627766,0.56593065,65961.0,65960.0,0.00197776]
[1727581628758,0.54216215,65961.0,65960.0,0.00197776]
[1727581628973,0.40570422,65961.0,65960.0,0.00197776]
[1727581631871,0.40585321,65961.0,65960.0,0.00197776]
[1727581632100,0.40185321,65961.0,65960.0,0.00197776]
[1727581632332,0.40585321,65961.0,65960.0,0.00197776]
[1727581632773,0.40185321,65961.0,65960.0,0.00197776]
[1727581633224,0.40585321,65961.0,65960.0,0.00197776]
[1727581635024,0.40585321,65961.0,65960.0,0.06040261]
[1727581635263,0.40585321,65961.0,65960.0,0.00197776]
[1727581635479,0.55950552,65961.0,65960.0,0.00197776]
[1727581638890,0.58327366,65961.0,65960.0,0.00197776]
[1727581641283,0.55950552,65961.0,65960.0,0.00197776]
[1727581644418,0.58327378,65961.0,65960.0,0.00197776]
[1727581646169,0.58343808,65961.0,65960.0,0.00197776]
[1727581646401,0.58457933,65961.0,65960.0,0.00197776]
[1727581646641,0.43076528,65961.0,65960.0,0.00197776]
[1727581648867,0.40699702,65961.0,65960.0,0.00197776]
[1727581651222,0.40698562,65961.0,65960.0,0.00197776]
[1727581651908,0.43075374,65961.0,65960.0,0.00197776]
[1727581653236,0.40698562,65961.0,65960.0,0.00197776]
[1727581653455,0.5457433,65961.0,65960.0,0.00197776]
[1727581658611,0.40698562,65961.0,65960.0,0.00197776]
[1727581659233,0.49698562,65961.0,65960.0,0.00197776]
[1727581661168,0.49711748,65961.0,65960.0,0.00197776]
[1727581663135,0.49311748,65961.0,65960.0,0.00197776]
[1727581663338,0.49711748,65961.0,65960.0,0.00197776]
[1727581663966,0.49311748,65961.0,65960.0,0.00197776]
[1727581664169,0.49611748,65961.0,65960.0,0.00197776]
[1727581665271,0.51988564,65961.0,65960.0,0.00197776]
[1727581665475,0.66995196,65961.0,65960.0,0.00197776]
[1727581665918,0.82374732,65961.0,65960.0,0.00197776]
[1727581666131,0.67091716,65961.0,65960.0,0.00197776]
[1727581666762,0.52085084,65961.0,65960.0,0.00197776]
[1727581667006,0.43085084,65961.0,65960.0,0.00197776]
[1727581671053,0.43083055,65961.0,65960.0,0.00197776]
[1727581676045,0.27919916,65961.0,65960.0,0.00197776]
[1727581676260,0.43084467,65961.0,65960.0,0.00197776]
[1727581679274,0.58464995,65961.0,65960.0,0.00197776]
[1727581680785,0.43079521,65961.0,65960.0,0.00197776]
[1727581681463,0.58460416,65961.0,65960.0,0.00197776]
[1727581681889,0.43079521,65961.0,65960.0,0.00197776]
[1727581684696,0.58460416,65961.0,65960.0,0.00197776]
[1727581685373,0.43079521,65961.0,65960.0,0.00197776]
[1727581689578,0.40702705,65961.0,65960.0,0.00197776]
[1727581692924,0.25459605,65961.0,65960.0,0.00197776]
[1727581693137,0.40620005,65961.0,65960.0,0.00197776]
[1727581696694,0.560009,65961.0,65960.0,0.00197776]
[1727581697098,0.5837771,65961.0,65960.0,0.00197776]
[1727581697311,0.42996815,65961.0,65960.0,0.00197776]
[1727581697519,0.5837771,65961.0,65960.0,0.00197776]
[1727581698175,0.560009,65961.0,65960.0,0.00197776]
[1727581699185,0.56011396,65961.0,65960.0,0.00197776]
[1727581700013,0.56094096,65961.0,65960.0,0.00197776]
[1727581701260,0.584709,65961.0,65960.0,0.00197776]
[1727581702267,0.43088423,65961.0,65960.0,0.00197776]
[1727581702586,0.40711619,65961.0,65960.0,0.00197776]
[1727581706702,0.56094096,65961.0,65960.0,0.00197776]
[1727581706945,0.40711619,65961.0,65960.0,0.00197776]
[1727581707165,0.56094096,65961.0,65960.0,0.00197776]
[1727581707631,0.40711619,65961.0,65960.0,0.00197776]
[1727581707844,0.56094096,65961.0,65960.0,0.00197776]
[1727581708595,0.40711619,65961.0,65960.0,0.00197776]
[1727581708843,0.29224389,65961.0,65960.0,0.29111287]
[1727581709083,0.15551219,65961.0,65960.0,0.47216196]
[1727581709327,0.11775491,65961.0,65960.0,0.53057278]
[1727581709569,0.04935789,65961.0,65960.0,0.53057278]
[1727581709818,0.003827,65961.0,65960.0,0.53057278]
[1727581711010,0.003827,65961.0,65960.0,0.50113069]
[1727581711259,0.000827,65961.0,65960.0,0.05841082]
[1727581711497,0.74021692,65961.0,65960.0,0.05841082]
[1727581711735,0.251609,65959.0,65958.0,0.001654]
[1727581711970,0.40226757,65959.0,65958.0,0.001654]
[1727581713162,0.40626757,65959.0,65958.0,0.001654]
[1727581713398,0.40541203,65959.0,65958.0,0.001654]
[1727581714286,0.40541203,65959.0,65958.0,0.002654]
[1727581714546,0.42918077,65959.0,65958.0,0.002654]
[1727581717611,0.40541203,65959.0,65958.0,0.002654]
[1727581720664,0.42918088,65959.0,65958.0,0.002654]
[1727581720881,0.40541203,65959.0,65958.0,0.002654]
[1727581722990,0.67330583,65959.0,65958.0,0.002654]
[1727581723213,0.84790583,65959.0,65958.0,0.002654]
[1727581723460,0.84990583,65959.0,65958.0,0.002654]
[1727581724146,0.8696761,65959.0,65958.0,0.001654]
[1727581724593,1.02320996,65959.0,65958.0,0.002654]
[1727581724821,1.02320996,65959.0,65958.0,0.001654]
[1727581725081,1.01143969,65959.0,65958.0,0.003654]
[1727581725306,1.01143969,65959.0,65958.0,0.002654]
[1727581725534,0.99943969,65959.0,65958.0,0.001654]
[1727581725749,0.99943969,65959.0,65958.0,0.003654]
[1727581725959,1.01143969,65959.0,65958.0,0.002654]
[1727581726425,1.00943969,65959.0,65958.0,0.002654]
[1727581727322,1.01143969,65959.0,65958.0,0.002654]
[1727581727554,1.00943969,65959.0,65958.0,0.002654]
[1727581728059,1.02343969,65959.0,65958.0,0.003654]
[1727581728280,0.86990583,65959.0,65958.0,0.003654]
[1727581728689,0.85590583,65959.0,65958.0,0.002654]
[1727581729188,0.85590583,65959.0,65958.0,0.003654]
[1727581729189,0.86990583,65959.0,65958.0,0.003654]
[1727581729436,1.02343969,65959.0,65958.0,0.003654]
[1727581729643,1.04721006,65959.0,65958.0,0.003654]
[1727581730289,1.03321006,65959.0,65958.0,0.001654]
[1727581730495,1.03121006,65959.0,65958.0,0.002654]
[1727581730701,1.04221006,65959.0,65958.0,0.003654]
[1727581730906,1.04221006,65959.0,65958.0,0.002654]
[1727581731109,1.04121006,65959.0,65958.0,0.002654]
[1727581731315,0.87248632,65959.0,65958.0,0.002654]
[1727581731519,0.88148632,65959.0,65958.0,0.003654]
[1727581732400,0.76665121,65959.0,65958.0,0.003654]
[1727581732845,0.76835448,65959.0,65958.0,0.003654]
[1727581737936,0.76832536,65959.0,65958.0,0.003654]
[1727581739874,0.94552477,65959.0,65958.0,0.003654]
[1727581740542,0.7920955,65959.0,65958.0,0.003654]
[1727581741388,0.76822582,65959.0,65958.0,0.003654]
[1727581743182,0.68652582,65959.0,65958.0,0.003654]
[1727581744356,0.71029598,65959.0,65958.0,0.003654]
[1727581745500,0.68652582,65959.0,65958.0,0.003654]
[1727581746348,0.68653087,65959.0,65958.0,0.003654]
[1727581749915,0.71030104,65959.0,65958.0,0.003654]
[1727581751440,0.71004619,65959.0,65958.0,0.003654]
[1727581753671,0.68627602,65959.0,65958.0,0.003654]
[1727581756124,0.89795546,65959.0,65958.0,0.003654]
[1727581756334,0.68631788,65959.0,65958.0,0.003654]
[1727581757216,0.71008795,65959.0,65958.0,0.003654]
[1727581758098,0.68631788,65959.0,65958.0,0.003654]
[1727581761121,0.71008808,65959.0,65958.0,0.003654]
[1727581761763,0.71008808,65959.0,65958.0,0.00386966]
[1727581762216,0.68631788,65959.0,65958.0,0.00386966]
[1727581765443,0.71008834,65959.0,65958.0,0.00386966]
[1727581765998,0.71037913,65959.0,65958.0,0.00386966]
[1727581766651,0.68660867,65959.0,65958.0,0.00386966]
[1727581766869,0.55654998,65959.0,65958.0,0.00386966]
[1727581770936,0.55668523,65959.0,65958.0,0.00386966]
[1727581771139,0.58045604,65959.0,65958.0,0.00386966]
[1727581774322,0.55668523,65959.0,65958.0,0.00386966]
[1727581775438,0.71307329,65959.0,65958.0,0.00386966]
[1727581775656,0.71507329,65959.0,65958.0,0.00386966]
[1727581775879,0.71307329,65959.0,65958.0,0.00386966]
[1727581777011,0.71507329,65959.0,65958.0,0.00386966]
[1727581777875,0.71307329,65959.0,65958.0,0.00386966]
[1727581780517,0.73684407,65959.0,65958.0,0.00386966]
[1727581780736,0.73689849,65959.0,65958.0,0.00386966]
[1727581780948,0.71312771,65959.0,65958.0,0.00386966]
[1727581781873,0.73689847,65959.0,65958.0,0.00386966]
[1727581784902,0.9492087,65959.0,65958.0,0.00386966]
[1727581785337,0.71312771,65959.0,65958.0,0.00386966]
[1727581785784,0.71313072,65959.0,65958.0,0.00386966]
[1727581788407,0.73690144,65959.0,65958.0,0.00386966]
[1727581790893,0.71313072,65959.0,65958.0,0.00386966]
[1727581791079,0.73690143,65959.0,65958.0,0.00386966]
[1727581791290,0.73688294,65959.0,65958.0,0.00386966]
[1727581791961,0.71311223,65959.0,65958.0,0.00386966]
[1727581795867,0.92547101,65959.0,65958.0,0.00386966]
[1727581796123,0.71314149,65959.0,65958.0,0.00386966]
[1727581798315,0.73691211,65959.0,65958.0,0.00386966]
[1727581798942,0.48762405,65959.0,65958.0,0.08706966]
[1727581799174,0.46462405,65959.0,65958.0,0.08706966]
[1727581800711,0.46501815,65959.0,65958.0,0.08706966]
[1727581801360,0.44124753,65959.0,65958.0,0.08706966]
[1727581808673,0.46501686,65959.0,65958.0,0.08706966]
[1727581809351,0.46497858,65959.0,65958.0,0.08706966]
[1727581811462,0.44120925,65959.0,65958.0,0.08706966]
[1727581814062,0.28918949,65959.0,65958.0,0.08706966]
[1727581814285,0.44095507,65959.0,65958.0,0.08706966]
[1727581818828,0.4647244,65959.0,65958.0,0.08706966]
[1727581819046,0.46442928,65959.0,65958.0,0.08706966]
[1727581821035,0.61811565,65959.0,65958.0,0.08706966]
[1727581821262,0.44065995,65959.0,65958.0,0.08706966]
[1727581823869,0.28918949,65959.0,65958.0,0.08706966]
[1727581824127,0.44063052,65959.0,65958.0,0.08706966]